[Event "Titled Tuesday Blitz July 18 Early 2023"]
[White "Wartiovaara, Oliver"]
[Black "Zemlyanskii, Ivan"]
[WhiteFideId "513024"]
[BlackFideId "24249971"]
[WhiteElo "2473"]
[BlackElo "2878"]
[Result "1/2-1/2"]
[Round "1"]
[TimeControl "180+2"]
[Date "2023.07.18"]
[WhiteClock "0:00:13"]
[BlackClock "0:00:05"]
[Board "39"]

1. Nf3 {[%clk 0:03:00]}  d5 {[%clk 0:02:59]} 2. d4 {[%clk 0:02:57]}  Nf6 {[%clk 0:02:57]} 3. c4 {[%clk 0:02:57]}  c6 {[%clk 0:02:57]} 4. e3 {[%clk 0:02:54]}  Bf5 {[%clk 0:02:55]} 5. Nh4 {[%clk 0:02:47]}  Bg6 {[%clk 0:02:49]} 6. Nc3 {[%clk 0:02:41]}  e6 {[%clk 0:02:49]} 7. Nxg6 {[%clk 0:02:38]}  hxg6 {[%clk 0:02:50]} 8. Qb3 {[%clk 0:02:38]}  Qc7 {[%clk 0:02:48]} 9. Bd2 {[%clk 0:02:27]}  Nbd7 {[%clk 0:02:48]} 10. cxd5 {[%clk 0:02:23]}  exd5 {[%clk 0:02:47]} 11. O-O-O {[%clk 0:02:20]}  Bd6 {[%clk 0:02:35]} 12. f3 {[%clk 0:01:56]}  Rxh2 {[%clk 0:02:22]} 13. Rxh2 {[%clk 0:01:54]}  Bxh2 {[%clk 0:02:23]} 14. e4 {[%clk 0:01:55]}  dxe4 {[%clk 0:02:12]} 15. fxe4 {[%clk 0:01:56]}  Bf4 {[%clk 0:02:12]} 16. e5 {[%clk 0:01:52]}  Nh5 {[%clk 0:01:58]} 17. Kb1 {[%clk 0:01:37]}  Bxd2 {[%clk 0:01:44]} 18. Rxd2 {[%clk 0:01:38]}  Nb6 {[%clk 0:01:44]} 19. d5 {[%clk 0:01:24]}  Nxd5 {[%clk 0:01:20]} 20. Nxd5 {[%clk 0:01:14]}  cxd5 {[%clk 0:01:21]} 21. Qxd5 {[%clk 0:00:50]}  Rd8 {[%clk 0:00:52]} 22. Qb5+ {[%clk 0:00:48]}  Kf8 {[%clk 0:00:47]} 23. Qb4+ {[%clk 0:00:47]}  Kg8 {[%clk 0:00:45]} 24. Rxd8+ {[%clk 0:00:38]}  Qxd8 {[%clk 0:00:46]} 25. Be2 {[%clk 0:00:33]}  Qd5 {[%clk 0:00:46]} 26. Bf3 {[%clk 0:00:27]}  Qd3+ {[%clk 0:00:29]} 27. Kc1 {[%clk 0:00:27]}  b6 {[%clk 0:00:27]} 28. e6 {[%clk 0:00:25]}  fxe6 {[%clk 0:00:24]} 29. Qe7 {[%clk 0:00:24]}  Qc4+ {[%clk 0:00:23]} 30. Kb1 {[%clk 0:00:23]}  Nf6 {[%clk 0:00:19]} 31. b3 {[%clk 0:00:20]}  Qd3+ {[%clk 0:00:19]} 32. Kb2 {[%clk 0:00:20]}  Qd4+ {[%clk 0:00:17]} 33. Ka3 {[%clk 0:00:20]}  Qc5+ {[%clk 0:00:17]} 34. Qxc5 {[%clk 0:00:20]}  bxc5 {[%clk 0:00:18]} 35. Ka4 {[%clk 0:00:20]}  e5 {[%clk 0:00:18]} 36. Kb5 {[%clk 0:00:20]}  e4 {[%clk 0:00:18]} 37. Be2 {[%clk 0:00:21]}  Nd5 {[%clk 0:00:16]} 38. Kxc5 {[%clk 0:00:21]}  Nf4 {[%clk 0:00:14]} 39. Bc4+ {[%clk 0:00:18]}  Kf8 {[%clk 0:00:12]} 40. Kd4 {[%clk 0:00:19]}  Nxg2 {[%clk 0:00:12]} 41. Kxe4 {[%clk 0:00:19]}  Nh4 {[%clk 0:00:12]} 42. b4 {[%clk 0:00:19]}  Ke7 {[%clk 0:00:12]} 43. a4 {[%clk 0:00:19]}  Nf5 {[%clk 0:00:13]} 44. Bd5 {[%clk 0:00:17]}  Nd6+ {[%clk 0:00:11]} 45. Kf4 {[%clk 0:00:16]}  Kf6 {[%clk 0:00:11]} 46. a5 {[%clk 0:00:14]}  g5+ {[%clk 0:00:11]} 47. Kg3 {[%clk 0:00:14]}  Ke5 {[%clk 0:00:12]} 48. Bc6 {[%clk 0:00:14]}  Kd4 {[%clk 0:00:11]} 49. b5 {[%clk 0:00:14]}  Kc5 {[%clk 0:00:12]} 50. Kg4 {[%clk 0:00:11]}  Nxb5 {[%clk 0:00:12]} 51. Bd7 {[%clk 0:00:11]}  Nd6 {[%clk 0:00:09]} 52. Kxg5 {[%clk 0:00:11]}  Kb4 {[%clk 0:00:10]} 53. a6 {[%clk 0:00:11]}  Ka5 {[%clk 0:00:10]} 54. Kg6 {[%clk 0:00:11]}  Kxa6 {[%clk 0:00:10]} 55. Kxg7 {[%clk 0:00:12]}  Kb6 {[%clk 0:00:11]} 56. Kf6 {[%clk 0:00:12]}  a5 {[%clk 0:00:10]} 57. Ke5 {[%clk 0:00:12]}  Nb7 {[%clk 0:00:09]} 58. Kd4 {[%clk 0:00:12]}  Nc5 {[%clk 0:00:09]} 59. Be8 {[%clk 0:00:12]}  Ne6+ {[%clk 0:00:07]} 60. Kc3 {[%clk 0:00:12]}  Kc5 {[%clk 0:00:07]} 61. Kb3 {[%clk 0:00:12]}  Nc7 {[%clk 0:00:08]} 62. Ka4 {[%clk 0:00:12]}  Kb6 {[%clk 0:00:08]} 63. Bg6 {[%clk 0:00:12]}  Ne6 {[%clk 0:00:08]} 64. Be8 {[%clk 0:00:12]}  Nd4 {[%clk 0:00:07]} 65. Ka3 {[%clk 0:00:12]}  Nf5 {[%clk 0:00:06]} 66. Ka2 {[%clk 0:00:13]}  Kc5 {[%clk 0:00:06]} 67. Ka1 {[%clk 0:00:13]}  Kb4 {[%clk 0:00:07]} 68. Bd7 {[%clk 0:00:13]}  Nd4 {[%clk 0:00:07]} 69. Be8 {[%clk 0:00:13]}  Kb3 {[%clk 0:00:07]} 70. Bd7 {[%clk 0:00:13]}  Nc2+ {[%clk 0:00:06]} 71. Kb1 {[%clk 0:00:13]}  Nb4 {[%clk 0:00:07]} 72. Be8 {[%clk 0:00:13]}  Nd3 {[%clk 0:00:05]} 1/2-1/2


[Site "https://www.chess.com"]

[Event "Titled Tuesday Blitz July 18 Early 2023"]
[White "Galchenko, Matvey"]
[Black "Rodriguez Fontecha, Marcos"]
[WhiteFideId "24175480"]
[BlackFideId "2256576"]
[WhiteElo "2876"]
[BlackElo "2473"]
[Result "1-0"]
[Round "1"]
[TimeControl "180+2"]
[Date "2023.07.18"]
[WhiteClock "0:02:09"]
[BlackClock "0:01:16"]
[Board "40"]

1. f4 {[%clk 0:02:58]}  Nf6 {[%clk 0:02:54]} 2. Nf3 {[%clk 0:02:57]}  g6 {[%clk 0:02:54]} 3. g3 {[%clk 0:02:58]}  Bg7 {[%clk 0:02:55]} 4. Bg2 {[%clk 0:02:58]}  O-O {[%clk 0:02:55]} 5. O-O {[%clk 0:02:59]}  d6 {[%clk 0:02:56]} 6. d3 {[%clk 0:03:00]}  c6 {[%clk 0:02:56]} 7. Nc3 {[%clk 0:03:01]}  Qc7 {[%clk 0:02:56]} 8. e4 {[%clk 0:03:02]}  e5 {[%clk 0:02:55]} 9. f5 {[%clk 0:03:01]}  Na6 {[%clk 0:02:52]} 10. Nh4 {[%clk 0:02:56]}  d5 {[%clk 0:02:42]} 11. g4 {[%clk 0:02:49]}  dxe4 {[%clk 0:02:32]} 12. g5 {[%clk 0:02:39]}  Nd5 {[%clk 0:02:13]} 13. Nxe4 {[%clk 0:02:26]}  Re8 {[%clk 0:01:51]} 14. Qf3 {[%clk 0:02:20]}  Bf8 {[%clk 0:01:27]} 15. c4 {[%clk 0:02:12]}  Nc5 {[%clk 0:01:20]} 16. cxd5 {[%clk 0:02:09]}  cxd5 {[%clk 0:01:16]} 17. Nf6+ {[%clk 0:02:09]} 1-0


[Site "https://www.chess.com"]

[Event "Titled Tuesday Blitz July 18 Early 2023"]
[White "Ozen, Bahadir"]
[Black "JonSnowNW1"]
[WhiteFideId "6337058"]
[WhiteElo "2848"]
[BlackElo "2462"]
[Result "1-0"]
[Round "1"]
[TimeControl "180+2"]
[Date "2023.07.18"]
[WhiteClock "0:01:20"]
[BlackClock "0:00:00"]
[Board "44"]

1. g3 {[%clk 0:03:00]}  d5 {[%clk 0:02:59]} 2. Nf3 {[%clk 0:03:00]}  g6 {[%clk 0:02:58]} 3. Bg2 {[%clk 0:03:00]}  Bg7 {[%clk 0:02:58]} 4. O-O {[%clk 0:03:01]}  c6 {[%clk 0:02:58]} 5. d3 {[%clk 0:03:01]}  Nf6 {[%clk 0:02:57]} 6. Nbd2 {[%clk 0:03:01]}  Nbd7 {[%clk 0:02:54]} 7. e4 {[%clk 0:03:01]}  e5 {[%clk 0:02:50]} 8. Re1 {[%clk 0:03:00]}  O-O {[%clk 0:02:50]} 9. b4 {[%clk 0:02:56]}  d4 {[%clk 0:02:45]} 10. Bb2 {[%clk 0:02:55]}  Re8 {[%clk 0:02:43]} 11. c3 {[%clk 0:02:55]}  c5 {[%clk 0:02:37]} 12. Nc4 {[%clk 0:02:51]}  b5 {[%clk 0:01:35]} 13. Nd6 {[%clk 0:02:50]}  Re6 {[%clk 0:01:35]} 14. Nxc8 {[%clk 0:02:40]}  Rxc8 {[%clk 0:01:33]} 15. Bh3 {[%clk 0:02:41]}  Re8 {[%clk 0:01:31]} 16. cxd4 {[%clk 0:02:36]}  cxd4 {[%clk 0:01:30]} 17. Qb3 {[%clk 0:02:37]}  Qb6 {[%clk 0:01:25]} 18. Ng5 {[%clk 0:02:22]}  Rf8 {[%clk 0:01:22]} 19. Rac1 {[%clk 0:02:00]}  Rce8 {[%clk 0:01:20]} 20. Rc2 {[%clk 0:01:51]}  h6 {[%clk 0:01:20]} 21. Nf3 {[%clk 0:01:51]}  Qb8 {[%clk 0:00:56]} 22. Nh4 {[%clk 0:01:44]}  Kh7 {[%clk 0:00:53]} 23. Rc6 {[%clk 0:01:43]}  Nb6 {[%clk 0:00:50]} 24. Rec1 {[%clk 0:01:40]}  Na4 {[%clk 0:00:48]} 25. Ba1 {[%clk 0:01:38]}  Re7 {[%clk 0:00:39]} 26. a3 {[%clk 0:01:38]}  Rd8 {[%clk 0:00:24]} 27. Qa2 {[%clk 0:01:32]}  Rd6 {[%clk 0:00:19]} 28. Rc8 {[%clk 0:01:32]}  Qb7 {[%clk 0:00:20]} 29. Nf5 {[%clk 0:01:22]}  Nb6 {[%clk 0:00:13]} 30. Nxd6 {[%clk 0:01:21]}  Qa6 {[%clk 0:00:10]} 31. R8c6 {[%clk 0:01:19]}  Ne8 {[%clk 0:00:07]} 32. Nxe8 {[%clk 0:01:19]}  Rxe8 {[%clk 0:00:08]} 33. Qxf7 {[%clk 0:01:19]}  Rf8 {[%clk 0:00:08]} 34. Qxg6+ {[%clk 0:01:19]}  Kh8 {[%clk 0:00:07]} 35. Rc7 {[%clk 0:01:20]}  Nd7 {[%clk 0:00:00]} 36. Qxa6 {[%clk 0:01:20]} 1-0


[Site "https://www.chess.com"]

[Event "Titled Tuesday Blitz July 18 Early 2023"]
[White "Mitrabha, Guha"]
[Black "Martin Barcelo, Carles"]
[WhiteFideId "5057000"]
[BlackFideId "24561444"]
[WhiteElo "2847"]
[BlackElo "2460"]
[Result "1-0"]
[Round "1"]
[TimeControl "180+2"]
[Date "2023.07.18"]
[WhiteClock "0:00:25"]
[BlackClock "0:00:01"]
[Board "46"]

1. Nf3 {[%clk 0:02:46]}  Nf6 {[%clk 0:02:58]} 2. g3 {[%clk 0:02:23]}  d5 {[%clk 0:02:57]} 3. Bg2 {[%clk 0:01:54]}  c5 {[%clk 0:02:55]} 4. O-O {[%clk 0:01:55]}  Nc6 {[%clk 0:02:53]} 5. d4 {[%clk 0:01:34]}  e6 {[%clk 0:02:27]} 6. c4 {[%clk 0:01:28]}  cxd4 {[%clk 0:02:26]} 7. Nxd4 {[%clk 0:01:05]}  Be7 {[%clk 0:02:25]} 8. Nc3 {[%clk 0:00:59]}  O-O {[%clk 0:02:20]} 9. cxd5 {[%clk 0:00:58]}  exd5 {[%clk 0:02:20]} 10. Bg5 {[%clk 0:00:59]}  h6 {[%clk 0:02:09]} 11. Be3 {[%clk 0:00:52]}  Ng4 {[%clk 0:02:01]} 12. Bf4 {[%clk 0:00:46]}  g5 {[%clk 0:01:22]} 13. Bc1 {[%clk 0:00:35]}  Bf6 {[%clk 0:01:17]} 14. e3 {[%clk 0:00:33]}  Bg7 {[%clk 0:00:58]} 15. Nxd5 {[%clk 0:00:32]}  Nxd4 {[%clk 0:00:58]} 16. exd4 {[%clk 0:00:32]}  Be6 {[%clk 0:00:58]} 17. Ne3 {[%clk 0:00:27]}  Qxd4 {[%clk 0:00:58]} 18. Nxg4 {[%clk 0:00:24]}  Bxg4 {[%clk 0:00:44]} 19. Qb3 {[%clk 0:00:24]}  Rab8 {[%clk 0:00:29]} 20. Be3 {[%clk 0:00:24]}  Qxb2 {[%clk 0:00:27]} 21. Qxb2 {[%clk 0:00:24]}  Bxb2 {[%clk 0:00:28]} 22. Rab1 {[%clk 0:00:25]}  Be5 {[%clk 0:00:20]} 23. Bxa7 {[%clk 0:00:25]}  Ra8 {[%clk 0:00:18]} 24. Rxb7 {[%clk 0:00:26]}  Rfe8 {[%clk 0:00:14]} 25. a3 {[%clk 0:00:23]}  Bb2 {[%clk 0:00:11]} 26. Rxb2 {[%clk 0:00:20]}  Rxa7 {[%clk 0:00:11]} 27. a4 {[%clk 0:00:21]}  Re5 {[%clk 0:00:05]} 28. Ra1 {[%clk 0:00:20]}  Rea5 {[%clk 0:00:05]} 29. Bc6 {[%clk 0:00:20]}  Bd7 {[%clk 0:00:05]} 30. Bxd7 {[%clk 0:00:20]}  Rxd7 {[%clk 0:00:06]} 31. Rb5 {[%clk 0:00:20]}  Ra6 {[%clk 0:00:06]} 32. a5 {[%clk 0:00:21]}  Rda7 {[%clk 0:00:07]} 33. g4 {[%clk 0:00:21]}  Kg7 {[%clk 0:00:07]} 34. Kg2 {[%clk 0:00:22]}  Kf8 {[%clk 0:00:07]} 35. Kf3 {[%clk 0:00:23]}  Ke7 {[%clk 0:00:08]} 36. Re1+ {[%clk 0:00:23]}  Kf8 {[%clk 0:00:08]} 37. Ree5 {[%clk 0:00:24]}  Kg7 {[%clk 0:00:08]} 38. Ke4 {[%clk 0:00:25]}  Kf8 {[%clk 0:00:07]} 39. Kd4 {[%clk 0:00:25]}  Rd7+ {[%clk 0:00:07]} 40. Red5 {[%clk 0:00:25]}  Rda7 {[%clk 0:00:06]} 41. Kc4 {[%clk 0:00:25]}  Rc7+ {[%clk 0:00:05]} 42. Kb4 {[%clk 0:00:26]}  Rca7 {[%clk 0:00:06]} 43. Rb6 {[%clk 0:00:25]}  Ke7 {[%clk 0:00:04]} 44. Rxa6 {[%clk 0:00:25]}  Rxa6 {[%clk 0:00:05]} 45. Kb5 {[%clk 0:00:25]}  Ra8 {[%clk 0:00:04]} 46. a6 {[%clk 0:00:26]}  Ke6 {[%clk 0:00:05]} 47. Rf5 {[%clk 0:00:25]}  f6 {[%clk 0:00:04]} 48. Kb6 {[%clk 0:00:25]}  h5 {[%clk 0:00:01]} 49. h3 {[%clk 0:00:25]} 1-0


[Site "https://www.chess.com"]

[Event "Titled Tuesday Blitz July 18 Early 2023"]
[White "Baches Garcia, Guillermo"]
[Black "Vitiugov, Nikita"]
[WhiteFideId "2209764"]
[BlackFideId "4152956"]
[WhiteElo "2460"]
[BlackElo "2845"]
[Result "0-1"]
[Round "1"]
[TimeControl "180+2"]
[Date "2023.07.18"]
[WhiteClock "0:00:00"]
[BlackClock "0:00:07"]
[Board "47"]

1. e4 {[%clk 0:03:00]}  e5 {[%clk 0:02:58]} 2. Nf3 {[%clk 0:03:00]}  Nc6 {[%clk 0:02:58]} 3. Nc3 {[%clk 0:03:00]}  Nf6 {[%clk 0:02:54]} 4. d4 {[%clk 0:03:01]}  exd4 {[%clk 0:02:52]} 5. Nxd4 {[%clk 0:03:01]}  Bb4 {[%clk 0:02:51]} 6. Nxc6 {[%clk 0:03:02]}  bxc6 {[%clk 0:02:51]} 7. Bd3 {[%clk 0:03:02]}  O-O {[%clk 0:02:50]} 8. O-O {[%clk 0:03:02]}  Re8 {[%clk 0:02:49]} 9. Bg5 {[%clk 0:03:00]}  h6 {[%clk 0:02:45]} 10. Bh4 {[%clk 0:03:00]}  d6 {[%clk 0:02:21]} 11. f4 {[%clk 0:02:56]}  Rb8 {[%clk 0:02:20]} 12. Kh1 {[%clk 0:02:44]}  Bc5 {[%clk 0:02:16]} 13. e5 {[%clk 0:02:32]}  dxe5 {[%clk 0:01:56]} 14. fxe5 {[%clk 0:02:32]}  Qd4 {[%clk 0:01:55]} 15. Bxf6 {[%clk 0:01:53]}  gxf6 {[%clk 0:01:52]} 16. Ne4 {[%clk 0:01:43]}  Rxe5 {[%clk 0:01:50]} 17. Nxc5 {[%clk 0:01:20]}  Qxc5 {[%clk 0:01:47]} 18. Rxf6 {[%clk 0:01:16]}  Kg7 {[%clk 0:01:38]} 19. Qf3 {[%clk 0:01:11]}  Be6 {[%clk 0:01:37]} 20. Rf1 {[%clk 0:01:08]}  Rf8 {[%clk 0:01:24]} 21. b3 {[%clk 0:00:48]}  Rg5 {[%clk 0:01:12]} 22. Qe4 {[%clk 0:00:32]}  Rh8 {[%clk 0:01:03]} 23. R6f2 {[%clk 0:00:27]}  Bd5 {[%clk 0:00:57]} 24. Qf4 {[%clk 0:00:21]}  Qd6 {[%clk 0:00:46]} 25. Qd4+ {[%clk 0:00:20]}  Qe5 {[%clk 0:00:33]} 26. Qxa7 {[%clk 0:00:19]}  Rh5 {[%clk 0:00:27]} 27. Rf4 {[%clk 0:00:14]}  Re8 {[%clk 0:00:26]} 28. Qf2 {[%clk 0:00:14]}  Rg5 {[%clk 0:00:20]} 29. Rxf7+ {[%clk 0:00:13]}  Kh8 {[%clk 0:00:18]} 30. Rh7+ {[%clk 0:00:13]}  Kg8 {[%clk 0:00:18]} 31. Rxh6 {[%clk 0:00:10]}  Bxg2+ {[%clk 0:00:07]} 32. Qxg2 {[%clk 0:00:00]}  Rxg2 {[%clk 0:00:07]} 0-1


[Site "https://www.chess.com"]

[Event "Titled Tuesday Blitz July 18 Early 2023"]
[White "Bacrot, Etienne"]
[Black "Matyukov, Petr"]
[WhiteFideId "605506"]
[BlackFideId "4103688"]
[WhiteElo "2845"]
[BlackElo "2454"]
[Result "1-0"]
[Round "1"]
[TimeControl "180+2"]
[Date "2023.07.18"]
[WhiteClock "0:00:13"]
[BlackClock "0:00:04"]
[Board "48"]

1. e4 {[%clk 0:02:48]}  c6 {[%clk 0:02:58]} 2. Nf3 {[%clk 0:02:47]}  d5 {[%clk 0:02:58]} 3. Nc3 {[%clk 0:02:48]}  dxe4 {[%clk 0:02:54]} 4. Nxe4 {[%clk 0:02:49]}  Nf6 {[%clk 0:02:54]} 5. Qe2 {[%clk 0:02:49]}  Nxe4 {[%clk 0:02:52]} 6. Qxe4 {[%clk 0:02:49]}  Qd5 {[%clk 0:02:52]} 7. Qf4 {[%clk 0:02:46]}  Qf5 {[%clk 0:02:39]} 8. Qxf5 {[%clk 0:02:31]}  Bxf5 {[%clk 0:02:40]} 9. b3 {[%clk 0:02:31]}  Nd7 {[%clk 0:02:34]} 10. Bb2 {[%clk 0:02:30]}  f6 {[%clk 0:02:31]} 11. O-O-O {[%clk 0:02:29]}  O-O-O {[%clk 0:02:23]} 12. Nd4 {[%clk 0:02:27]}  Bg6 {[%clk 0:02:13]} 13. Ne6 {[%clk 0:02:26]}  Re8 {[%clk 0:02:13]} 14. Bc4 {[%clk 0:02:23]}  Bf7 {[%clk 0:02:11]} 15. Rhe1 {[%clk 0:02:15]}  Nb6 {[%clk 0:02:00]} 16. Bf1 {[%clk 0:02:02]}  Bxe6 {[%clk 0:01:39]} 17. Rxe6 {[%clk 0:02:02]}  Kd7 {[%clk 0:01:40]} 18. Rde1 {[%clk 0:02:02]}  Nd5 {[%clk 0:01:40]} 19. g3 {[%clk 0:00:33]}  Nc7 {[%clk 0:01:36]} 20. R6e3 {[%clk 0:00:32]}  e5 {[%clk 0:01:34]} 21. Bh3+ {[%clk 0:00:29]}  Kd8 {[%clk 0:01:31]} 22. d4 {[%clk 0:00:28]}  exd4 {[%clk 0:01:27]} 23. Rxe8+ {[%clk 0:00:27]}  Nxe8 {[%clk 0:01:27]} 24. Bxd4 {[%clk 0:00:28]}  b6 {[%clk 0:01:25]} 25. c4 {[%clk 0:00:27]}  Nc7 {[%clk 0:01:21]} 26. Kc2 {[%clk 0:00:26]}  Bd6 {[%clk 0:01:18]} 27. Rd1 {[%clk 0:00:26]}  Ke7 {[%clk 0:01:15]} 28. Re1+ {[%clk 0:00:25]}  Kf7 {[%clk 0:01:14]} 29. Bd7 {[%clk 0:00:22]}  c5 {[%clk 0:01:13]} 30. Bc3 {[%clk 0:00:23]}  Rd8 {[%clk 0:01:11]} 31. Bc6 {[%clk 0:00:23]}  Ne6 {[%clk 0:01:11]} 32. Bd5 {[%clk 0:00:22]}  Re8 {[%clk 0:01:10]} 33. f4 {[%clk 0:00:17]}  f5 {[%clk 0:01:09]} 34. Rxe6 {[%clk 0:00:14]}  Rxe6 {[%clk 0:01:07]} 35. Bxe6+ {[%clk 0:00:15]}  Kxe6 {[%clk 0:01:07]} 36. Bxg7 {[%clk 0:00:16]}  h5 {[%clk 0:01:02]} 37. Kd3 {[%clk 0:00:15]}  a6 {[%clk 0:01:02]} 38. Ke3 {[%clk 0:00:16]}  b5 {[%clk 0:00:53]} 39. cxb5 {[%clk 0:00:15]}  axb5 {[%clk 0:00:54]} 40. h3 {[%clk 0:00:15]}  Be7 {[%clk 0:00:53]} 41. Kf3 {[%clk 0:00:15]}  Kf7 {[%clk 0:00:52]} 42. Be5 {[%clk 0:00:15]}  c4 {[%clk 0:00:49]} 43. bxc4 {[%clk 0:00:14]}  bxc4 {[%clk 0:00:50]} 44. g4 {[%clk 0:00:15]}  hxg4+ {[%clk 0:00:43]} 45. hxg4 {[%clk 0:00:15]}  Kg6 {[%clk 0:00:38]} 46. Bc3 {[%clk 0:00:14]}  Bc5 {[%clk 0:00:36]} 47. a4 {[%clk 0:00:14]}  Ba7 {[%clk 0:00:30]} 48. a5 {[%clk 0:00:14]}  Bc5 {[%clk 0:00:30]} 49. g5 {[%clk 0:00:15]}  Kh5 {[%clk 0:00:19]} 50. Bd2 {[%clk 0:00:14]}  Kg6 {[%clk 0:00:04]} 51. Be3 {[%clk 0:00:13]} 1-0


[Site "https://www.chess.com"]

[Event "Titled Tuesday Blitz July 18 Early 2023"]
[White "Bochnicka, Vladimir"]
[Black "Wagh Suyog"]
[WhiteFideId "14943450"]
[BlackFideId "25071688"]
[WhiteElo "2453"]
[BlackElo "2841"]
[Result "1-0"]
[Round "1"]
[TimeControl "180+2"]
[Date "2023.07.18"]
[WhiteClock "0:00:22"]
[BlackClock "0:00:15"]
[Board "49"]

1. e4 {[%clk 0:03:00]}  e6 {[%clk 0:02:58]} 2. d4 {[%clk 0:02:59]}  d5 {[%clk 0:02:58]} 3. exd5 {[%clk 0:02:58]}  exd5 {[%clk 0:02:58]} 4. Nf3 {[%clk 0:02:58]}  Bd6 {[%clk 0:02:57]} 5. Bd3 {[%clk 0:02:59]}  Nc6 {[%clk 0:02:57]} 6. O-O {[%clk 0:02:56]}  Nge7 {[%clk 0:02:57]} 7. c4 {[%clk 0:02:54]}  dxc4 {[%clk 0:02:51]} 8. Bxc4 {[%clk 0:02:55]}  O-O {[%clk 0:02:51]} 9. h3 {[%clk 0:02:55]}  Bf5 {[%clk 0:02:48]} 10. Nc3 {[%clk 0:02:54]}  Qd7 {[%clk 0:02:47]} 11. Re1 {[%clk 0:02:49]}  Rad8 {[%clk 0:02:20]} 12. Bg5 {[%clk 0:02:18]}  h6 {[%clk 0:02:17]} 13. Bxe7 {[%clk 0:02:15]}  Nxe7 {[%clk 0:02:12]} 14. Ne5 {[%clk 0:02:11]}  Bxe5 {[%clk 0:01:53]} 15. dxe5 {[%clk 0:02:12]}  Qc6 {[%clk 0:01:15]} 16. Qb3 {[%clk 0:02:08]}  a6 {[%clk 0:01:07]} 17. e6 {[%clk 0:02:01]}  f6 {[%clk 0:01:02]} 18. Rac1 {[%clk 0:01:30]}  b5 {[%clk 0:00:54]} 19. Nd5 {[%clk 0:01:30]}  Qd6 {[%clk 0:00:43]} 20. Nxe7+ {[%clk 0:01:25]}  Qxe7 {[%clk 0:00:44]} 21. Bd5 {[%clk 0:01:26]}  Rd6 {[%clk 0:00:44]} 22. Rc6 {[%clk 0:01:03]}  Rfd8 {[%clk 0:00:43]} 23. Rxd6 {[%clk 0:00:55]}  Rxd6 {[%clk 0:00:43]} 24. g4 {[%clk 0:00:49]}  Bg6 {[%clk 0:00:41]} 25. Bg2 {[%clk 0:00:43]}  Bd3 {[%clk 0:00:35]} 26. Qa3 {[%clk 0:00:34]}  Bc4 {[%clk 0:00:29]} 27. b3 {[%clk 0:00:19]}  Bxe6 {[%clk 0:00:29]} 28. Bd5 {[%clk 0:00:20]}  Kf7 {[%clk 0:00:29]} 29. Rxe6 {[%clk 0:00:19]}  Rxe6 {[%clk 0:00:29]} 30. Qxa6 {[%clk 0:00:19]}  c6 {[%clk 0:00:23]} 31. Qxc6 {[%clk 0:00:19]}  b4 {[%clk 0:00:22]} 32. Qxe6+ {[%clk 0:00:19]}  Qxe6 {[%clk 0:00:22]} 33. Bxe6+ {[%clk 0:00:20]}  Kxe6 {[%clk 0:00:23]} 34. Kf1 {[%clk 0:00:21]}  Ke5 {[%clk 0:00:23]} 35. Ke2 {[%clk 0:00:22]}  Kf4 {[%clk 0:00:23]} 36. Kd3 {[%clk 0:00:21]}  Kf3 {[%clk 0:00:17]} 37. Kc4 {[%clk 0:00:21]}  Kxf2 {[%clk 0:00:18]} 38. Kxb4 {[%clk 0:00:22]}  g6 {[%clk 0:00:13]} 39. a4 {[%clk 0:00:23]}  f5 {[%clk 0:00:13]} 40. gxf5 {[%clk 0:00:23]}  gxf5 {[%clk 0:00:14]} 41. a5 {[%clk 0:00:23]}  f4 {[%clk 0:00:15]} 42. a6 {[%clk 0:00:24]}  f3 {[%clk 0:00:16]} 43. a7 {[%clk 0:00:24]}  Kg3 {[%clk 0:00:17]} 44. a8=Q {[%clk 0:00:24]}  f2 {[%clk 0:00:18]} 45. Qh1 {[%clk 0:00:23]}  h5 {[%clk 0:00:15]} 46. Qf1 {[%clk 0:00:22]} 1-0


[Site "https://www.chess.com"]

[Event "Titled Tuesday Blitz July 18 Early 2023"]
[White "KhalilMousavi98"]
[Black "Gatterer, Florian"]
[BlackFideId "811688"]
[WhiteElo "2839"]
[BlackElo "2450"]
[Result "1-0"]
[Round "1"]
[TimeControl "180+2"]
[Date "2023.07.18"]
[WhiteClock "0:01:51"]
[BlackClock "0:00:38"]
[Board "50"]

1. e4 {[%clk 0:03:00]}  c5 {[%clk 0:03:00]} 2. Nf3 {[%clk 0:03:00]}  e6 {[%clk 0:03:00]} 3. d4 {[%clk 0:03:00]}  cxd4 {[%clk 0:03:01]} 4. Nxd4 {[%clk 0:03:01]}  Nf6 {[%clk 0:03:02]} 5. Nc3 {[%clk 0:03:01]}  Nc6 {[%clk 0:03:02]} 6. Be2 {[%clk 0:02:54]}  Bb4 {[%clk 0:03:01]} 7. O-O {[%clk 0:02:54]}  Bxc3 {[%clk 0:03:01]} 8. bxc3 {[%clk 0:02:54]}  Nxe4 {[%clk 0:03:02]} 9. Bf3 {[%clk 0:02:50]}  d5 {[%clk 0:03:01]} 10. Nxc6 {[%clk 0:02:42]}  bxc6 {[%clk 0:03:00]} 11. Ba3 {[%clk 0:02:43]}  c5 {[%clk 0:02:31]} 12. Bxe4 {[%clk 0:02:40]}  dxe4 {[%clk 0:02:31]} 13. Qg4 {[%clk 0:02:41]}  O-O {[%clk 0:02:21]} 14. Bxc5 {[%clk 0:02:21]}  f5 {[%clk 0:02:03]} 15. Qf4 {[%clk 0:02:21]}  Re8 {[%clk 0:01:53]} 16. Bd4 {[%clk 0:02:08]}  Qa5 {[%clk 0:01:47]} 17. Be5 {[%clk 0:02:01]}  Ba6 {[%clk 0:01:37]} 18. Rfd1 {[%clk 0:01:56]}  Bc4 {[%clk 0:00:38]} 19. Rd7 {[%clk 0:01:51]} 1-0


[Site "https://www.chess.com"]